[Event "Late-Titled-Tuesday-Blitz-February-27-2024"]
[Site "Chess.com"]
[Date "2024.02.27"]
[Round "4"]
[White "emeli_chess"]
[Black "morte-negra"]
[Result "1-0"]
[WhiteElo "2439"]
[BlackElo "2035"]
[TimeControl "180+1"]
[EndTime "14:39:32 PST"]
[Termination "emeli_chess won on time"]

1. d4 {[%clk 0:03:00.9]} 1... Nf6 {[%clk 0:02:58.2]} 2. c4 {[%clk 0:03:00.9]}
2... g6 {[%clk 0:02:58.7]} 3. Nc3 {[%clk 0:03:01.1]} 3... Bg7 {[%clk 0:02:59.1]}
4. e4 {[%clk 0:03:01.5]} 4... d6 {[%clk 0:02:59.7]} 5. f3 {[%clk 0:03:01.7]}
5... O-O {[%clk 0:02:59.2]} 6. Be3 {[%clk 0:03:01.9]} 6... c5 {[%clk 0:02:59]}
7. Nge2 {[%clk 0:03:01.4]} 7... Nbd7 {[%clk 0:02:51.4]} 8. Qd2 {[%clk
0:02:50.2]} 8... Re8 {[%clk 0:02:45.7]} 9. O-O-O {[%clk 0:02:41.8]} 9... a6
{[%clk 0:02:44]} 10. dxc5 {[%clk 0:02:40]} 10... Ne5 {[%clk 0:02:25.6]} 11. Nf4
{[%clk 0:02:30.6]} 11... g5 {[%clk 0:01:52.6]} 12. Nfd5 {[%clk 0:02:26.1]} 12...
Nxd5 {[%clk 0:01:44.3]} 13. cxd5 {[%clk 0:02:17.7]} 13... dxc5 {[%clk
0:01:40.6]} 14. Bxc5 {[%clk 0:02:11]} 14... b5 {[%clk 0:01:35.9]} 15. Bd4 {[%clk
0:02:03.9]} 15... h6 {[%clk 0:01:25.7]} 16. h4 {[%clk 0:02:03.2]} 16... e6
{[%clk 0:01:03]} 17. hxg5 {[%clk 0:01:54.2]} 17... hxg5 {[%clk 0:01:01.3]} 18.
d6 {[%clk 0:01:29.1]} 18... Qxd6 {[%clk 0:00:44.8]} 19. Qxg5 {[%clk 0:01:25.9]}
19... b4 {[%clk 0:00:44.6]} 20. Na4 {[%clk 0:01:16.1]} 20... Qc6+ {[%clk
0:00:38.3]} 21. Nc5 {[%clk 0:01:02.2]} 21... f6 {[%clk 0:00:24.7]} 22. Qh5
{[%clk 0:00:58.1]} 22... Bb7 {[%clk 0:00:12.8]} 23. Kb1 {[%clk 0:00:55.9]} 23...
Rac8 {[%clk 0:00:08.9]} 24. Be2 {[%clk 0:00:50.4]} 24... Nf7 {[%clk 0:00:06.2]}
25. Rc1 {[%clk 0:00:45.4]} 25... e5 {[%clk 0:00:05.8]} 26. Be3 {[%clk 0:00:41]}
26... Qd6 {[%clk 0:00:03.2]} 27. Qh7+ {[%clk 0:00:37.9]} 27... Kf8 {[%clk
0:00:02.3]} 28. Rhd1 {[%clk 0:00:37.7]} 1-0

[Event "Late-Titled-Tuesday-Blitz-February-27-2024"]
[Site "Chess.com"]
[Date "2024.02.27"]
[Round "4"]
[White "BardArtem"]
[Black "EvilMorty23"]
[Result "0-1"]
[WhiteElo "2726"]
[BlackElo "2563"]
[TimeControl "180+1"]
[EndTime "14:39:38 PST"]
[Termination "EvilMorty23 won on time"]

1. d4 {[%clk 0:02:59.2]} 1... Nf6 {[%clk 0:02:59.9]} 2. c4 {[%clk 0:02:57.4]}
2... e6 {[%clk 0:03:00.8]} 3. Bf4 {[%clk 0:02:56.2]} 3... d5 {[%clk 0:02:58]} 4.
Nc3 {[%clk 0:02:54.3]} 4... Be7 {[%clk 0:02:55.6]} 5. e3 {[%clk 0:02:54.3]} 5...
a6 {[%clk 0:02:55.9]} 6. Nf3 {[%clk 0:02:54.2]} 6... O-O {[%clk 0:02:55.1]} 7.
cxd5 {[%clk 0:02:53.2]} 7... Nxd5 {[%clk 0:02:55.2]} 8. Nxd5 {[%clk 0:02:53.1]}
8... exd5 {[%clk 0:02:55.7]} 9. Rc1 {[%clk 0:02:52.6]} 9... Bg4 {[%clk
0:02:52.5]} 10. Bd3 {[%clk 0:02:45.7]} 10... Bb4+ {[%clk 0:02:50.8]} 11. Kf1
{[%clk 0:02:45.5]} 11... c6 {[%clk 0:02:48.2]} 12. Qb3 {[%clk 0:02:35.7]} 12...
Bxf3 {[%clk 0:02:30.8]} 13. Qxb4 {[%clk 0:02:30.3]} 13... Be4 {[%clk 0:02:21.9]}
14. Bxe4 {[%clk 0:02:29.4]} 14... dxe4 {[%clk 0:02:22.8]} 15. Qxb7 {[%clk
0:02:29.6]} 15... Nd7 {[%clk 0:02:22.9]} 16. Rxc6 {[%clk 0:02:26.8]} 16... Nf6
{[%clk 0:01:56.1]} 17. g3 {[%clk 0:02:01.3]} 17... Qa5 {[%clk 0:01:49.5]} 18.
Kg2 {[%clk 0:01:58.1]} 18... Qxa2 {[%clk 0:01:45.3]} 19. Rhc1 {[%clk 0:01:54.2]}
19... Qd5 {[%clk 0:01:41]} 20. Qxa8 {[%clk 0:01:50]} 20... Rxa8 {[%clk
0:01:37.9]} 21. Rc8+ {[%clk 0:01:48]} 21... Ne8 {[%clk 0:01:38.1]} 22. R8c5
{[%clk 0:01:38.9]} 22... Qe6 {[%clk 0:01:36.3]} 23. d5 {[%clk 0:01:36.6]} 23...
Qg4 {[%clk 0:01:35.3]} 24. d6 {[%clk 0:01:35.1]} 24... Rd8 {[%clk 0:01:31.7]}
25. Rc6 {[%clk 0:01:31.7]} 25... g5 {[%clk 0:01:30.2]} 26. Be5 {[%clk
0:01:22.6]} 26... f6 {[%clk 0:01:30.3]} 27. Bd4 {[%clk 0:01:13.7]} 27... Rxd6
{[%clk 0:01:24.2]} 28. Rc8 {[%clk 0:01:13.9]} 28... Kf7 {[%clk 0:01:21.9]} 29.
Ra8 {[%clk 0:01:04.8]} 29... Ng7 {[%clk 0:01:12.7]} 30. Kg1 {[%clk 0:00:36.8]}
30... Rd7 {[%clk 0:01:08.4]} 31. Rxa6 {[%clk 0:00:04.3]} 31... Ne6 {[%clk
0:01:08.2]} 32. Rcc6 {[%clk 0:00:04.6]} 32... Nxd4 {[%clk 0:01:07.5]} 33. Rxf6+
{[%clk 0:00:05.5]} 33... Kg7 {[%clk 0:01:07.6]} 34. exd4 {[%clk 0:00:06.4]}
34... Rxd4 {[%clk 0:01:07.3]} 35. Kg2 {[%clk 0:00:03.7]} 35... e3 {[%clk
0:01:03]} 36. Rf3 {[%clk 0:00:04]} 36... Qe4 {[%clk 0:00:56.7]} 37. Ra7+ {[%clk
0:00:03.4]} 37... Kg8 {[%clk 0:00:57]} 38. Rb7 {[%clk 0:00:01.4]} 38... Qxb7
{[%clk 0:00:56.3]} 0-1

[Event "Late-Titled-Tuesday-Blitz-February-27-2024"]
[Site "Chess.com"]
[Date "2024.02.27"]
[Round "4"]
[White "toninhojit"]
[Black "rikchessmx"]
[Result "0-1"]
[WhiteElo "2468"]
[BlackElo "2239"]
[TimeControl "180+1"]
[EndTime "14:39:38 PST"]
[Termination "rikchessmx won by resignation"]

1. d4 {[%clk 0:03:00.9]} 1... Nf6 {[%clk 0:03:00.5]} 2. c4 {[%clk 0:03:00.9]}
2... g6 {[%clk 0:03:00.7]} 3. Nc3 {[%clk 0:03:00.6]} 3... d5 {[%clk 0:03:00.7]}
4. cxd5 {[%clk 0:02:59.3]} 4... Nxd5 {[%clk 0:03:01.3]} 5. e4 {[%clk 0:02:59.8]}
5... Nxc3 {[%clk 0:03:01.3]} 6. bxc3 {[%clk 0:03:00.7]} 6... Bg7 {[%clk
0:03:01.6]} 7. Nf3 {[%clk 0:02:59.2]} 7... O-O {[%clk 0:03:01.6]} 8. Be2 {[%clk
0:02:59.4]} 8... c5 {[%clk 0:03:01.8]} 9. O-O {[%clk 0:02:57.7]} 9... Qc7 {[%clk
0:03:01.8]} 10. Be3 {[%clk 0:02:56.8]} 10... Rd8 {[%clk 0:03:00.8]} 11. Qd2
{[%clk 0:02:52.8]} 11... Nc6 {[%clk 0:03:00.3]} 12. Rac1 {[%clk 0:02:51]} 12...
e6 {[%clk 0:02:59.5]} 13. Rfd1 {[%clk 0:02:39]} 13... b6 {[%clk 0:02:58.1]} 14.
Bg5 {[%clk 0:02:31.9]} 14... f6 {[%clk 0:02:55.1]} 15. Bf4 {[%clk 0:02:28.9]}
15... e5 {[%clk 0:02:53.5]} 16. Bg3 {[%clk 0:02:24.7]} 16... Bb7 {[%clk
0:02:45]} 17. Bc4+ {[%clk 0:02:19.4]} 17... Kh8 {[%clk 0:02:44.2]} 18. Bd5
{[%clk 0:02:20]} 18... Qe7 {[%clk 0:02:34]} 19. Bxc6 {[%clk 0:02:19.7]} 19...
Bxc6 {[%clk 0:02:33.6]} 20. d5 {[%clk 0:02:20.2]} 20... Ba4 {[%clk 0:02:32.9]}
21. Re1 {[%clk 0:02:19.7]} 21... c4 {[%clk 0:02:25.2]} 22. h4 {[%clk 0:02:17.1]}
22... h5 {[%clk 0:02:23.3]} 23. Nh2 {[%clk 0:02:09.6]} 23... Kh7 {[%clk
0:02:22.6]} 24. f4 {[%clk 0:02:08.1]} 24... exf4 {[%clk 0:02:21.6]} 25. Bxf4
{[%clk 0:02:08.3]} 25... Rac8 {[%clk 0:02:17.7]} 26. Nf3 {[%clk 0:02:08.2]}
26... Qc5+ {[%clk 0:01:52.8]} 27. Be3 {[%clk 0:02:06.1]} 27... Qd6 {[%clk
0:01:50.3]} 28. Nd4 {[%clk 0:02:03.2]} 28... Bd7 {[%clk 0:01:42.4]} 29. Bf4
{[%clk 0:02:02.1]} 29... Qc5 {[%clk 0:01:39.6]} 30. Kh1 {[%clk 0:01:55.8]} 30...
Re8 {[%clk 0:01:39.1]} 31. Qf2 {[%clk 0:01:40.2]} 31... a6 {[%clk 0:01:30.5]}
32. Qg3 {[%clk 0:01:40.2]} 32... b5 {[%clk 0:01:27.5]} 33. Bd6 {[%clk
0:01:36.1]} 33... Qb6 {[%clk 0:01:23.6]} 34. e5 {[%clk 0:01:36.5]} 34... fxe5
{[%clk 0:01:21]} 35. Bxe5 {[%clk 0:01:37.4]} 35... Bxe5 {[%clk 0:01:06.1]} 36.
Rxe5 {[%clk 0:01:38.3]} 36... Rxe5 {[%clk 0:01:06.2]} 37. Qxe5 {[%clk
0:01:39.2]} 37... Re8 {[%clk 0:01:05.7]} 38. Qg3 {[%clk 0:01:39.3]} 38... Qf6
{[%clk 0:01:02.8]} 39. Kg1 {[%clk 0:01:31.3]} 39... Qe5 {[%clk 0:01:02.4]} 40.
Qf3 {[%clk 0:01:26.6]} 40... Kg7 {[%clk 0:00:59.5]} 41. Rf1 {[%clk 0:01:24.8]}
41... Qe3+ {[%clk 0:00:56.7]} 42. Qxe3 {[%clk 0:01:21.5]} 42... Rxe3 {[%clk
0:00:56]} 43. Rf3 {[%clk 0:01:22.4]} 43... Rxf3 {[%clk 0:00:55.9]} 44. gxf3
{[%clk 0:01:22.7]} 44... Kf6 {[%clk 0:00:56.1]} 45. f4 {[%clk 0:01:21.3]} 45...
a5 {[%clk 0:00:54.6]} 46. Kf2 {[%clk 0:01:20.7]} 46... b4 {[%clk 0:00:55]} 47.
Ke3 {[%clk 0:01:21]} 47... Ke7 {[%clk 0:00:51.5]} 48. Nc2 {[%clk 0:01:09.3]}
48... b3 {[%clk 0:00:50.5]} 49. axb3 {[%clk 0:01:10.2]} 49... cxb3 {[%clk
0:00:50.3]} 50. Na3 {[%clk 0:01:10.9]} 50... Kd6 {[%clk 0:00:47.9]} 51. Kd4
{[%clk 0:01:11.3]} 51... b2 {[%clk 0:00:46.9]} 52. c4 {[%clk 0:01:07.5]} 52...
Bf5 {[%clk 0:00:46.3]} 53. c5+ {[%clk 0:01:08.1]} 53... Kd7 {[%clk 0:00:46.1]}
54. Ke5 {[%clk 0:00:56]} 54... b1=Q {[%clk 0:00:45.7]} 55. Nxb1 {[%clk
0:00:56.7]} 55... Bxb1 {[%clk 0:00:45.7]} 56. c6+ {[%clk 0:00:53]} 56... Kc7
{[%clk 0:00:45.3]} 57. Kd4 {[%clk 0:00:51.6]} 57... Kd6 {[%clk 0:00:44.2]} 0-1

[Event "Late-Titled-Tuesday-Blitz-February-27-2024"]
[Site "Chess.com"]
[Date "2024.02.27"]
[Round "4"]
[White "DryCounty"]
[Black "ventdelest"]
[Result "1-0"]
[WhiteElo "2659"]
[BlackElo "2070"]
[TimeControl "180+1"]
[EndTime "14:39:39 PST"]
[Termination "DryCounty won on time"]

1. e4 {[%clk 0:02:59.4]} 1... c5 {[%clk 0:02:58.6]} 2. Nf3 {[%clk 0:02:58.8]}
2... Nc6 {[%clk 0:02:58.2]} 3. d4 {[%clk 0:02:58.7]} 3... cxd4 {[%clk
0:02:58.3]} 4. Nxd4 {[%clk 0:02:59.5]} 4... Nf6 {[%clk 0:02:58]} 5. Nc3 {[%clk
0:02:59.6]} 5... e5 {[%clk 0:02:57.4]} 6. Ndb5 {[%clk 0:02:58.5]} 6... d6 {[%clk
0:02:56.9]} 7. Bg5 {[%clk 0:02:57.7]} 7... a6 {[%clk 0:02:46.1]} 8. Na3 {[%clk
0:02:57.4]} 8... b5 {[%clk 0:02:45.5]} 9. Nd5 {[%clk 0:02:57.1]} 9... Be7 {[%clk
0:02:44.4]} 10. Nxe7 {[%clk 0:02:56.7]} 10... Nxe7 {[%clk 0:02:43.6]} 11. Bd3
{[%clk 0:02:56.4]} 11... Bb7 {[%clk 0:02:40.2]} 12. Qe2 {[%clk 0:02:55.9]} 12...
d5 {[%clk 0:02:38.8]} 13. exd5 {[%clk 0:02:55.2]} 13... Qxd5 {[%clk 0:02:38]}
14. O-O-O {[%clk 0:02:51.4]} 14... Qxa2 {[%clk 0:02:22.1]} 15. Qxe5 {[%clk
0:02:48.7]} 15... Qe6 {[%clk 0:02:19.2]} 16. Rhe1 {[%clk 0:02:41.3]} 16... Qxe5
{[%clk 0:02:13.1]} 17. Rxe5 {[%clk 0:02:40.2]} 17... Kf8 {[%clk 0:02:13]} 18.
Rde1 {[%clk 0:02:26]} 18... Ng6 {[%clk 0:02:05.8]} 19. Rc5 {[%clk 0:02:20.9]}
19... Rc8 {[%clk 0:01:57.8]} 20. Rxc8+ {[%clk 0:02:19]} 20... Bxc8 {[%clk
0:01:57.7]} 21. c4 {[%clk 0:02:17.9]} 21... b4 {[%clk 0:01:41.7]} 22. Nc2 {[%clk
0:02:17.3]} 22... a5 {[%clk 0:01:41.6]} 23. Be3 {[%clk 0:02:16.7]} 23... Be6
{[%clk 0:01:23.9]} 24. Bb6 {[%clk 0:02:12.5]} 24... b3 {[%clk 0:01:12.5]} 25.
Nd4 {[%clk 0:02:11]} 25... a4 {[%clk 0:01:09.3]} 26. Bc5+ {[%clk 0:02:08]} 26...
Kg8 {[%clk 0:01:02.9]} 27. Ba3 {[%clk 0:02:07.9]} 27... Bd7 {[%clk 0:00:56.7]}
28. c5 {[%clk 0:02:06.3]} 28... Nf4 {[%clk 0:00:48.2]} 29. Bf1 {[%clk
0:02:03.1]} 29... Ne6 {[%clk 0:00:47.3]} 30. Nxe6 {[%clk 0:01:59.9]} 30... Bxe6
{[%clk 0:00:46.2]} 31. Bb5 {[%clk 0:01:58.2]} 31... h5 {[%clk 0:00:44.3]} 32.
Bxa4 {[%clk 0:01:56.4]} 32... Kh7 {[%clk 0:00:43.6]} 33. c6 {[%clk 0:01:51.9]}
33... Ng4 {[%clk 0:00:35.3]} 34. f3 {[%clk 0:01:48.9]} 34... Nf6 {[%clk
0:00:33.5]} 35. Bd6 {[%clk 0:01:44.7]} 35... Rc8 {[%clk 0:00:32.7]} 36. c7
{[%clk 0:01:24.8]} 36... Nd5 {[%clk 0:00:24.2]} 37. Re5 {[%clk 0:01:16.8]} 37...
Nxc7 {[%clk 0:00:21.7]} 38. Rxh5+ {[%clk 0:01:16]} 38... Kg6 {[%clk 0:00:20.5]}
39. Rc5 {[%clk 0:01:16.3]} 39... Na6 {[%clk 0:00:13.7]} 40. Rxc8 {[%clk
0:01:15.9]} 40... Bxc8 {[%clk 0:00:14.6]} 41. Bxb3 {[%clk 0:01:15.2]} 41... Kf6
{[%clk 0:00:03.7]} 42. Kd2 {[%clk 0:01:14.8]} 42... Be6 {[%clk 0:00:01.4]} 43.
Bc2 {[%clk 0:01:13.9]} 1-0

[Event "Late-Titled-Tuesday-Blitz-February-27-2024"]
[Site "Chess.com"]
[Date "2024.02.27"]
[Round "4"]
[White "FairChess_on_YouTube"]
[Black "TigrVShlyape"]
[Result "1/2-1/2"]
[WhiteElo "3108"]
[BlackElo "2912"]
[TimeControl "180+1"]
[EndTime "14:39:40 PST"]
[Termination "Game drawn by repetition"]

1. c4 {[%clk 0:03:00.9]} 1... f5 {[%clk 0:02:58]} 2. Nc3 {[%clk 0:03:00.3]} 2...
Nf6 {[%clk 0:02:58.4]} 3. d4 {[%clk 0:02:58.9]} 3... e6 {[%clk 0:02:58.4]} 4. g3
{[%clk 0:02:55.6]} 4... Bb4 {[%clk 0:02:57.4]} 5. Bg2 {[%clk 0:02:55.4]} 5...
O-O {[%clk 0:02:44.9]} 6. Qb3 {[%clk 0:02:54.5]} 6... a5 {[%clk 0:02:43.2]} 7.
a3 {[%clk 0:02:53.8]} 7... Bxc3+ {[%clk 0:02:41.5]} 8. Qxc3 {[%clk 0:02:53.7]}
8... a4 {[%clk 0:02:41.8]} 9. Nh3 {[%clk 0:02:53.3]} 9... d6 {[%clk 0:02:32.9]}
10. O-O {[%clk 0:02:53.3]} 10... Qe7 {[%clk 0:02:31.8]} 11. Bg5 {[%clk
0:02:51.5]} 11... h6 {[%clk 0:02:27.6]} 12. Bxf6 {[%clk 0:02:51.4]} 12... Qxf6
{[%clk 0:02:26.7]} 13. Nf4 {[%clk 0:02:48.5]} 13... Nc6 {[%clk 0:02:17.4]} 14.
Rad1 {[%clk 0:02:46.3]} 14... g5 {[%clk 0:02:12.5]} 15. Nxe6 {[%clk 0:02:30.3]}
15... Bxe6 {[%clk 0:02:10.4]} 16. d5 {[%clk 0:02:30.8]} 16... Qxc3 {[%clk
0:02:09.7]} 17. bxc3 {[%clk 0:02:31.7]} 17... Bd7 {[%clk 0:01:19]} 18. dxc6
{[%clk 0:02:31.5]} 18... Bxc6 {[%clk 0:01:19.4]} 19. Bxc6 {[%clk 0:02:06]} 19...
bxc6 {[%clk 0:01:19.3]} 20. c5 {[%clk 0:02:06.6]} 20... dxc5 {[%clk 0:01:13.7]}
21. Rd7 {[%clk 0:02:05.6]} 21... Rf7 {[%clk 0:01:13.4]} 22. Rfd1 {[%clk
0:02:05.8]} 22... Re8 {[%clk 0:01:07.4]} 23. Rxf7 {[%clk 0:01:53]} 23... Kxf7
{[%clk 0:01:07]} 24. Rd7+ {[%clk 0:01:53.6]} 24... Ke6 {[%clk 0:01:06.9]} 25.
Rxc7 {[%clk 0:01:48.4]} 25... Kd6 {[%clk 0:01:02.8]} 26. Ra7 {[%clk 0:01:47.4]}
26... Rxe2 {[%clk 0:00:59.2]} 27. Rxa4 {[%clk 0:01:47.2]} 27... Kd5 {[%clk
0:00:56.4]} 28. Ra8 {[%clk 0:01:07.2]} 28... Kc4 {[%clk 0:00:53.9]} 29. Rc8
{[%clk 0:01:00.4]} 29... Re6 {[%clk 0:00:51.1]} 30. a4 {[%clk 0:01:00.4]} 30...
Kxc3 {[%clk 0:00:50.2]} 31. a5 {[%clk 0:01:00.9]} 31... Re1+ {[%clk 0:00:49.2]}
32. Kg2 {[%clk 0:01:00.9]} 32... Ra1 {[%clk 0:00:49.2]} 33. Rxc6 {[%clk
0:01:00.8]} 33... Rxa5 {[%clk 0:00:49.1]} 34. Rxh6 {[%clk 0:01:01.4]} 34... g4
{[%clk 0:00:47.1]} 35. h4 {[%clk 0:00:56.8]} 35... gxh3+ {[%clk 0:00:47.2]} 36.
Kxh3 {[%clk 0:00:46.5]} 36... c4 {[%clk 0:00:47]} 37. g4 {[%clk 0:00:44.5]}
37... fxg4+ {[%clk 0:00:46.6]} 38. Kxg4 {[%clk 0:00:45.4]} 38... Rc5 {[%clk
0:00:46.8]} 39. f4 {[%clk 0:00:45]} 39... Kd4 {[%clk 0:00:40.4]} 40. Rd6+ {[%clk
0:00:35.8]} 40... Ke4 {[%clk 0:00:39.7]} 41. Re6+ {[%clk 0:00:34]} 41... Kd4
{[%clk 0:00:37.1]} 42. Rd6+ {[%clk 0:00:26.7]} 42... Ke4 {[%clk 0:00:37]} 43.
Re6+ {[%clk 0:00:27.1]} 43... Kd4 {[%clk 0:00:37.3]} 44. Rd6+ {[%clk 0:00:27.5]}
1/2-1/2

[Event "Late-Titled-Tuesday-Blitz-February-27-2024"]
[Site "Chess.com"]
[Date "2024.02.27"]
[Round "4"]
[White "Nick12772"]
[Black "Caracal3000"]
[Result "0-1"]
[WhiteElo "2388"]
[BlackElo "2530"]
[TimeControl "180+1"]
[EndTime "14:39:50 PST"]
[Termination "Caracal3000 won on time"]

1. Nf3 {[%clk 0:03:00.9]} 1... d5 {[%clk 0:03:00.1]} 2. g3 {[%clk 0:02:59.6]}
2... e6 {[%clk 0:02:59.6]} 3. Bg2 {[%clk 0:02:59.7]} 3... Nf6 {[%clk 0:03:00.4]}
4. O-O {[%clk 0:03:00.3]} 4... Be7 {[%clk 0:03:01]} 5. d3 {[%clk 0:02:59.8]}
5... O-O {[%clk 0:03:01.7]} 6. Nbd2 {[%clk 0:02:59.9]} 6... c5 {[%clk
0:02:59.5]} 7. b3 {[%clk 0:02:59.9]} 7... Nc6 {[%clk 0:02:57.5]} 8. Bb2 {[%clk
0:03:00.3]} 8... b5 {[%clk 0:02:50.7]} 9. a4 {[%clk 0:02:58.8]} 9... b4 {[%clk
0:02:49.3]} 10. e4 {[%clk 0:02:51.9]} 10... Bb7 {[%clk 0:02:46.8]} 11. Re1
{[%clk 0:02:50.4]} 11... Re8 {[%clk 0:02:45.2]} 12. Qe2 {[%clk 0:02:48.3]} 12...
Bf8 {[%clk 0:02:43.9]} 13. Rad1 {[%clk 0:02:36.4]} 13... h6 {[%clk 0:02:40.8]}
14. h4 {[%clk 0:02:34.1]} 14... Qc7 {[%clk 0:02:35.8]} 15. Nh2 {[%clk
0:02:33.9]} 15... Nh7 {[%clk 0:02:22.6]} 16. exd5 {[%clk 0:02:17.8]} 16... exd5
{[%clk 0:02:22.7]} 17. Qxe8 {[%clk 0:02:18.7]} 17... Rxe8 {[%clk 0:02:22.6]} 18.
Rxe8 {[%clk 0:02:19.6]} 18... Nd4 {[%clk 0:02:22]} 19. Bxd4 {[%clk 0:01:58.1]}
19... cxd4 {[%clk 0:02:22.9]} 20. Rde1 {[%clk 0:01:45.7]} 20... Qxc2 {[%clk
0:02:18.1]} 21. Ndf3 {[%clk 0:01:45.8]} 21... Qxb3 {[%clk 0:02:06.4]} 22. Nxd4
{[%clk 0:01:45.5]} 22... Qxd3 {[%clk 0:02:02.9]} 23. Rb8 {[%clk 0:01:35.1]}
23... Qxd4 {[%clk 0:01:44.6]} 24. Rxb7 {[%clk 0:01:34.8]} 24... Bc5 {[%clk
0:01:45.3]} 25. Re2 {[%clk 0:01:11.9]} 25... b3 {[%clk 0:01:25.5]} 26. Nf3
{[%clk 0:01:04.9]} 26... Qa1+ {[%clk 0:01:21.1]} 27. Re1 {[%clk 0:01:02.2]}
27... b2 {[%clk 0:01:19.9]} 28. Bf1 {[%clk 0:00:45.7]} 28... a5 {[%clk
0:00:59.5]} 29. Bd3 {[%clk 0:00:45.3]} 29... Bb4 {[%clk 0:00:57.2]} 30. Rb1
{[%clk 0:00:28.2]} 30... Qa3 {[%clk 0:00:48.4]} 31. Ne5 {[%clk 0:00:23.9]} 31...
Qc3 {[%clk 0:00:40.9]} 32. Rb8+ {[%clk 0:00:08.8]} 32... Nf8 {[%clk 0:00:40.4]}
33. f4 {[%clk 0:00:04.7]} 33... f6 {[%clk 0:00:31]} 34. Ng6 {[%clk 0:00:01.7]}
34... Qxd3 {[%clk 0:00:29.4]} 0-1

[Event "Late-Titled-Tuesday-Blitz-February-27-2024"]
[Site "Chess.com"]
[Date "2024.02.27"]
[Round "4"]
[White "TheMagician"]
[Black "CheckBits"]
[Result "0-1"]
[WhiteElo "2129"]
[BlackElo "2366"]
[TimeControl "180+1"]
[EndTime "14:39:50 PST"]
[Termination "CheckBits won on time"]

1. d4 {[%clk 0:03:00]} 1... d5 {[%clk 0:02:59.2]} 2. c4 {[%clk 0:02:56.8]} 2...
dxc4 {[%clk 0:02:55.9]} 3. e3 {[%clk 0:02:56.3]} 3... e6 {[%clk 0:02:51.2]} 4.
Bxc4 {[%clk 0:02:55.5]} 4... a6 {[%clk 0:02:50.4]} 5. d5 {[%clk 0:02:47.6]} 5...
e5 {[%clk 0:02:43]} 6. e4 {[%clk 0:02:45.1]} 6... Bd6 {[%clk 0:02:25.4]} 7. Qe2
{[%clk 0:02:19.7]} 7... Ne7 {[%clk 0:02:16.7]} 8. Nd2 {[%clk 0:02:04.5]} 8... f5
{[%clk 0:02:06.1]} 9. exf5 {[%clk 0:01:54.8]} 9... Bxf5 {[%clk 0:02:02.3]} 10.
Ngf3 {[%clk 0:01:51.3]} 10... Nd7 {[%clk 0:02:00.3]} 11. h3 {[%clk 0:01:42.4]}
11... Ng6 {[%clk 0:01:53.9]} 12. Ne4 {[%clk 0:01:29.9]} 12... O-O {[%clk
0:01:50.7]} 13. Bg5 {[%clk 0:01:04.6]} 13... Qe8 {[%clk 0:01:42.7]} 14. O-O
{[%clk 0:00:32.6]} 14... h6 {[%clk 0:01:09.2]} 15. Bd2 {[%clk 0:00:22.5]} 15...
Nf4 {[%clk 0:00:46.1]} 16. Bxf4 {[%clk 0:00:20.6]} 16... exf4 {[%clk 0:00:46.4]}
17. Rfe1 {[%clk 0:00:18.5]} 17... Qh5 {[%clk 0:00:38.5]} 18. Nxd6 {[%clk
0:00:15.9]} 18... cxd6 {[%clk 0:00:38]} 19. Nd4 {[%clk 0:00:15.4]} 19... Qxe2
{[%clk 0:00:33.7]} 20. Rxe2 {[%clk 0:00:12.8]} 20... Ne5 {[%clk 0:00:33.6]} 21.
Nxf5 {[%clk 0:00:11.1]} 21... Rxf5 {[%clk 0:00:32]} 22. Bb3 {[%clk 0:00:10]}
22... f3 {[%clk 0:00:32.1]} 23. Re3 {[%clk 0:00:09.2]} 23... fxg2 {[%clk
0:00:30.7]} 24. Kxg2 {[%clk 0:00:09]} 24... Raf8 {[%clk 0:00:31.4]} 25. Rf1
{[%clk 0:00:06.9]} 25... Rg5+ {[%clk 0:00:30.6]} 26. Rg3 {[%clk 0:00:05.9]}
26... Rgf5 {[%clk 0:00:25.4]} 27. Re3 {[%clk 0:00:00.6]} 27... g5 {[%clk
0:00:24.5]} 0-1

[Event "Late-Titled-Tuesday-Blitz-February-27-2024"]
[Site "Chess.com"]
[Date "2024.02.27"]
[Round "4"]
[White "Kosak12"]
[Black "WilsonPalencia21"]
[Result "1-0"]
[WhiteElo "2801"]
[BlackElo "2583"]
[TimeControl "180+1"]
[EndTime "14:39:53 PST"]
[Termination "Kosak12 won by resignation"]

1. Nf3 {[%clk 0:02:57.9]} 1... g6 {[%clk 0:02:47.1]} 2. d4 {[%clk 0:02:53.8]}
2... Bg7 {[%clk 0:02:46.7]} 3. b3 {[%clk 0:02:54.2]} 3... c5 {[%clk 0:02:46.4]}
4. e3 {[%clk 0:02:53.7]} 4... cxd4 {[%clk 0:02:45.9]} 5. exd4 {[%clk 0:02:54]}
5... Nf6 {[%clk 0:02:46.4]} 6. Bb2 {[%clk 0:02:54.5]} 6... O-O {[%clk
0:02:46.6]} 7. Bd3 {[%clk 0:02:54.8]} 7... d6 {[%clk 0:02:47]} 8. O-O {[%clk
0:02:55.2]} 8... Nc6 {[%clk 0:02:47.5]} 9. h3 {[%clk 0:02:55.5]} 9... Re8 {[%clk
0:02:45.5]} 10. Re1 {[%clk 0:02:54.9]} 10... Nb4 {[%clk 0:02:43]} 11. Bf1 {[%clk
0:02:51.5]} 11... Bf5 {[%clk 0:02:42.5]} 12. Na3 {[%clk 0:02:52.2]} 12... Rc8
{[%clk 0:02:40]} 13. c3 {[%clk 0:02:50.5]} 13... Nbd5 {[%clk 0:02:37.6]} 14. Rc1
{[%clk 0:02:45.7]} 14... a6 {[%clk 0:02:20]} 15. Bd3 {[%clk 0:02:17.1]} 15...
Bxd3 {[%clk 0:02:15]} 16. Qxd3 {[%clk 0:02:18]} 16... Bh6 {[%clk 0:02:04.3]} 17.
Rcd1 {[%clk 0:02:07.7]} 17... Qa5 {[%clk 0:02:03.4]} 18. Nc4 {[%clk 0:01:59.2]}
18... Qxa2 {[%clk 0:01:44.6]} 19. Qc2 {[%clk 0:01:58.9]} 19... Rxc4 {[%clk
0:01:44.5]} 20. bxc4 {[%clk 0:01:44.8]} 20... Qxc4 {[%clk 0:01:43.9]} 21. Bc1
{[%clk 0:01:35.6]} 21... Bg7 {[%clk 0:01:19.6]} 22. Bd2 {[%clk 0:01:25.7]} 22...
e6 {[%clk 0:01:16.5]} 23. Ra1 {[%clk 0:01:23]} 23... Rc8 {[%clk 0:01:14]} 24.
Ra4 {[%clk 0:01:21.9]} 24... Qc7 {[%clk 0:01:08.5]} 25. Rb1 {[%clk 0:01:18.2]}
25... Qc6 {[%clk 0:01:01]} 26. Ra3 {[%clk 0:00:43.4]} 26... b5 {[%clk
0:00:46.3]} 27. Rba1 {[%clk 0:00:43.3]} 27... Nc7 {[%clk 0:00:46.5]} 28. Ne1
{[%clk 0:00:35.3]} 28... Nfd5 {[%clk 0:00:45.6]} 29. Qb2 {[%clk 0:00:30.1]}
29... Qc4 {[%clk 0:00:41.1]} 30. Qa2 {[%clk 0:00:29.3]} 30... Qe2 {[%clk
0:00:32.1]} 31. Be3 {[%clk 0:00:25.7]} 31... Qh5 {[%clk 0:00:23.8]} 32. c4
{[%clk 0:00:22.4]} 32... Nxe3 {[%clk 0:00:14.1]} 33. fxe3 {[%clk 0:00:22.4]}
33... Qg5 {[%clk 0:00:09.9]} 34. Nf3 {[%clk 0:00:21.7]} 34... Qxe3+ {[%clk
0:00:09.7]} 35. Rxe3 {[%clk 0:00:17.3]} 1-0